bitfinex-derivatives/quotes_BNBF0:USTF0_20250130
["timestamp","ask_amount","ask_price","bid_price","bid_amount"]
[1738220309502,1.1044254,677.69,676.85,0.25738587]
[1738220309804,1.1044254,677.69,676.86,0.29548207]
[1738220310805,0.56750949,678.06,676.86,0.29548207]
[1738220310806,1.1044254,677.72,676.86,0.29548207]
[1738220314809,1.1044254,677.71,676.86,0.29548207]
[1738220318007,1.1044254,677.72,676.86,0.29548207]
[1738220323609,1.1044254,677.74,676.86,0.29548207]
[1738220327514,1.1044254,677.73,676.86,0.29548207]
[1738220334127,1.1044254,677.73,676.87,0.25737927]
[1738220334317,1.1044254,677.73,676.87,0.55285698]
[1738220334517,1.1044254,677.73,676.88,0.29547334]
[1738220334719,1.1044254,677.73,676.89,0.25736393]
[1738220334921,1.1044254,677.73,676.9,0.29546461]
[1738220335323,1.1044254,677.63,676.91,0.25735849]
[1738220335622,1.1044254,677.63,676.92,0.29545588]
[1738220338622,1.1044254,677.81,676.92,0.29545588]
[1738220342220,1.1044254,677.82,676.92,0.29545588]
[1738220345425,1.1044254,677.83,676.92,0.29545588]
[1738220346319,0.27125926,677.82,676.92,0.29545588]
[1738220348922,1.1044254,677.78,676.92,0.29545588]
[1738220351929,1.1044254,677.84,676.92,0.29545588]
[1738220355327,1.1044254,677.89,676.92,0.29545588]
[1738220357930,2.25070383,678.55,676.92,0.29545588]
[1738220357931,1.1044254,677.86,676.92,0.29545588]
[1738220361238,1.1044254,677.92,676.92,0.29545588]
[1738220364942,2.25070383,678.64,676.92,0.29545588]
[1738220364943,1.1044254,677.85,676.92,0.29545588]
[1738220367547,0.27125219,677.84,676.93,0.25735479]
[1738220367847,0.27125219,677.84,676.94,0.29544715]
[1738220368049,1.37567759,677.84,676.94,0.29544715]
[1738220368247,0.27125219,677.83,676.94,0.29544715]
[1738220370655,1.1044254,677.71,676.94,1.39310049]
[1738220374051,1.1044254,677.7,676.94,1.39310049]
[1738220377454,1.1044254,677.7,676.95,1.09765334]
[1738220377655,1.1044254,677.7,676.96,0.29543843]
[1738220380355,1.1044254,678.15,676.96,0.29543843]
[1738220382958,1.1044254,678.17,676.96,0.29543843]
[1738220386064,1.1044254,678.18,676.96,0.29543843]
[1738220387967,0.27126875,678.17,676.96,0.29543843]
[1738220390066,1.1044254,678.19,676.96,0.29543843]
[1738220390067,0.27126875,678.18,676.96,0.29543843]
[1738220390261,0.27126875,678.17,676.96,0.29543843]
[1738220390463,1.1044254,678.19,676.96,0.29543843]
[1738220392066,1.1044254,678.07,676.96,0.29543843]
[1738220397866,0.76250256,678.81,676.96,0.29543843]
[1738220397867,1.1044254,678.09,676.96,0.29543843]
[1738220400375,0.27129167,678.08,676.96,0.29543843]
[1738220401373,0.27129167,678.07,676.96,0.29543843]
[1738220401572,0.27129167,678.06,676.96,0.29543843]
[1738220401772,0.27129167,678.09,676.96,0.29543843]
[1738220401971,0.27129167,678.08,676.96,0.29543843]
[1738220402171,0.27129167,678.07,676.96,0.29543843]
[1738220402374,0.27129167,678.09,676.96,0.29543843]
[1738220402577,0.27129167,678.08,676.96,0.29543843]
[1738220402771,0.27129167,678.09,676.96,0.29543843]
[1738220404478,1.1044254,677.84,676.96,0.29543843]
[1738220405077,0.27126385,677.83,676.96,0.29543843]
[1738220407174,1.1044254,677.81,676.96,0.29543843]
[1738220413983,1.1044254,677.84,676.96,0.29543843]
[1738220415583,0.27128109,677.83,676.96,0.29543843]
[1738220416788,1.1044254,677.82,676.96,0.29543843]
[1738220416987,0.27128109,677.81,676.96,0.29543843]
[1738220419391,1.1044254,677.73,676.96,0.29543843]
[1738220419587,0.27128109,677.72,676.96,0.29543843]
[1738220420183,1.1044254,677.73,676.96,0.29543843]
[1738220423693,0.27134095,677.72,676.96,0.29543843]
[1738220423895,0.27134095,677.76,676.96,0.29543843]
[1738220424093,0.27134095,677.75,676.96,0.29543843]
[1738220424393,0.27134095,677.74,676.96,0.29543843]
[1738220424586,0.27134095,677.76,676.96,0.29543843]
[1738220425791,0.27131838,677.75,676.96,0.29543843]
[1738220425993,0.27131838,677.76,676.96,0.29543843]
[1738220427392,1.37574378,677.76,676.96,0.29543843]
[1738220427695,0.27131838,677.75,676.96,0.29543843]
[1738220428694,1.1044254,677.76,676.96,0.29543843]
[1738220429994,1.10238555,678.05,676.96,0.29543843]
[1738220429995,1.1044254,677.77,676.96,0.29543843]
[1738220433097,1.1044254,677.92,676.96,0.29543843]
[1738220437203,1.1044254,678.13,676.96,0.29543843]
[1738220437503,0.27125317,678.12,676.96,0.29543843]
[1738220439807,1.1044254,678.13,676.96,0.29543843]
[1738220440208,1.1044254,678.16,676.96,0.29543843]
[1738220440509,0.27122299,678.15,676.96,0.29543843]
[1738220442711,1.1044254,678.16,676.96,0.29543843]
[1738220442911,0.27122677,678.15,676.96,0.29543843]
[1738220443113,1.1044254,678.16,676.96,0.29543843]
[1738220443312,1.1044254,678.22,676.96,0.29543843]
[1738220446610,1.1044254,678.42,676.96,0.29543843]
[1738220446913,0.27120581,678.41,676.96,0.29543843]
[1738220450911,0.27120581,678.48,676.96,0.29543843]
[1738220451114,0.27120581,678.47,676.96,0.29543843]
[1738220451309,0.27120581,678.48,676.96,0.29543843]
[1738220451514,0.27120581,678.47,676.96,0.29543843]
[1738220451710,0.27120581,678.48,676.96,0.29543843]
[1738220453913,0.27120581,678.47,676.97,0.25729711]
[1738220454109,0.27120581,678.46,676.98,0.2954297]
[1738220454412,0.27120581,678.45,676.98,0.2954297]
[1738220454614,0.27120581,678.52,676.99,0.25730137]
[1738220454812,0.56596933,678.51,677.0,0.29542097]
[1738220455010,0.27120581,678.5,677.0,0.29542097]
[1738220455213,0.27120581,678.49,677.01,0.25729723]
[1738220455410,0.27120581,678.48,677.02,0.29541224]
[1738220455717,0.27120581,678.47,677.02,0.29541224]
[1738220455918,0.27120581,678.46,677.02,0.29541224]
[1738220456121,0.27120581,678.45,677.02,0.29541224]
[1738220456319,0.27120581,678.44,677.02,0.29541224]
[1738220456520,0.27120581,678.43,677.02,0.29541224]
[1738220456716,0.27120581,678.5,677.02,0.29541224]
[1738220456919,0.27120581,678.49,677.02,0.29541224]
[1738220457121,0.27120581,678.48,677.02,0.29541224]
[1738220457317,0.27120581,678.47,677.02,0.29541224]
[1738220457521,1.1044254,678.22,677.02,0.29541224]
[1738220457717,0.27120581,678.21,677.02,0.29541224]
[1738220461629,1.1044254,678.18,677.02,0.29541224]
[1738220461830,0.27120581,678.17,677.02,0.29541224]
[1738220462330,1.1044254,678.18,677.02,0.29541224]
[1738220462531,0.27122065,678.17,677.02,0.29541224]
[1738220465033,1.1044254,678.07,677.02,0.29541224]
[1738220465226,0.27122065,678.06,677.02,0.29541224]
[1738220468333,1.1044254,677.95,677.02,0.29541224]
[1738220472031,1.1044254,677.95,677.03,0.25728731]
[1738220472335,1.1044254,677.95,677.04,0.29540352]
[1738220472831,1.1044254,677.98,677.04,0.29540352]
[1738220477038,1.10238555,678.19,677.04,0.29540352]
[1738220477039,1.1044254,678.01,677.04,0.29540352]
[1738220480238,1.1044254,678.1,677.04,0.29540352]
[1738220483041,1.1044254,678.11,677.04,0.29540352]
[1738220485842,1.1044254,678.16,677.04,0.29540352]
[1738220492649,1.1044254,678.3,677.04,0.29540352]
[1738220492849,0.2711632,678.29,677.04,0.29540352]
[1738220494945,1.1044254,678.3,677.04,0.29540352]
[1738220495143,0.27116249,678.29,677.04,0.29540352]
[1738220495548,1.1044254,678.24,677.04,0.29540352]
[1738220498445,1.10238555,678.52,677.04,0.29540352]
[1738220498446,1.1044254,678.25,677.04,0.29540352]
[1738220501052,0.27116003,678.24,677.04,0.29540352]
[1738220501449,0.27116003,678.24,677.05,0.25726093]
[1738220501752,0.27116003,678.24,677.06,0.29539479]
[1738220503049,0.27116003,678.24,677.07,0.25726063]
[1738220503352,0.27116003,678.24,677.08,0.29538606]
[1738220503547,0.27116003,678.24,677.09,0.25726063]
[1738220503746,0.27116003,678.24,677.1,0.29537734]
[1738220503952,1.1044254,678.25,677.1,0.29537734]
[1738220504154,1.1044254,678.12,677.11,0.25724727]
[1738220504356,0.27114382,678.11,677.12,0.29536862]
[1738220504548,1.1044254,678.12,677.13,0.25724727]
[1738220504752,1.1044254,678.12,677.14,0.29535989]
[1738220507047,1.1044254,678.12,677.15,0.25718524]
[1738220507551,1.1044254,678.09,677.15,0.25718524]
[1738220507948,1.1044254,678.09,677.14,0.29535989]
[1738220508153,1.1044254,678.09,677.15,0.25717921]
[1738220508655,1.1044254,678.09,677.14,0.29535989]
[1738220509055,1.1044254,678.09,677.15,0.25717803]
[1738220509256,1.1044254,678.09,677.17,0.29534681]
[1738220510359,1.1044254,678.48,677.17,0.29534681]
[1738220510560,0.27106968,678.47,677.17,0.29534681]
[1738220510858,1.1044254,678.48,677.17,0.29534681]
[1738220513656,5.2946189,686.48,677.18,0.25716279]
[1738220513657,1.1044254,678.55,677.18,0.25716279]
[1738220513853,0.27105589,678.5,677.2,0.29533372]
[1738220516060,1.1044254,678.55,677.2,0.29533372]
[1738220516264,0.27105899,678.5,677.2,0.29533372]
[1738220516757,0.27105899,678.5,677.21,0.25716203]
[1738220516963,0.27105899,678.59,677.21,0.25716203]
[1738220517163,0.27105899,678.58,677.21,0.25716203]
[1738220517363,0.27105899,678.59,677.21,0.25716203]
[1738220517563,0.27105899,678.58,677.21,0.25716203]
[1738220517759,0.27105899,678.57,677.21,0.25716203]
[1738220517958,0.27105899,678.59,677.21,0.25716203]
[1738220518362,0.27105899,678.59,677.23,0.29532064]
[1738220518564,0.27105899,678.59,677.24,0.25716203]
[1738220519464,0.27105899,678.59,677.26,0.29530756]
[1738220519667,1.1044254,678.48,677.27,0.25716203]
[1738220519865,0.27105899,678.47,677.29,0.29529448]
[1738220520164,0.27105899,678.47,677.3,0.25716203]
[1738220520357,1.1044254,678.48,677.3,0.25716203]
[1738220520758,0.27103651,678.47,677.32,0.2952814]
[1738220520964,1.1044254,678.48,677.32,0.2952814]
[1738220521164,0.27103659,678.47,677.32,0.2952814]
[1738220522167,1.1044254,678.48,677.33,0.25713625]
[1738220522358,1.1044254,678.48,677.35,0.29526832]
[1738220523059,1.1044254,678.64,677.35,0.29526832]
[1738220523658,0.2710293,678.63,677.35,0.29526832]
[1738220524159,0.2710293,678.63,677.36,0.25712361]
[1738220524359,0.2710293,678.63,677.35,0.29526832]
[1738220526568,0.2710293,678.62,677.35,0.29526832]
[1738220526768,0.2710293,678.67,677.35,0.29526832]
[1738220527066,0.2710293,678.66,677.35,0.29526832]
[1738220527267,0.2710293,678.67,677.35,0.29526832]
[1738220527470,0.2710293,678.66,677.36,0.25712119]
[1738220527764,0.2710293,678.67,677.36,0.25712119]
[1738220527966,0.2710293,678.66,677.36,0.25712119]
[1738220528264,0.2710293,678.67,677.38,0.29525524]
[1738220528468,0.2710293,678.66,677.38,0.29525524]
[1738220528661,0.2710293,678.74,677.38,0.29525524]
[1738220528864,0.2710293,678.73,677.38,0.29525524]
[1738220529061,0.2710293,678.72,677.38,0.29525524]
[1738220529265,0.2710293,678.74,677.38,0.29525524]
[1738220529460,0.2710293,678.73,677.38,0.29525524]
[1738220529662,1.1044254,678.75,677.38,0.29525524]
[1738220529862,0.27101664,678.74,677.38,0.29525524]
[1738220531371,1.1044254,678.75,677.38,0.29525524]
[1738220531571,0.27100747,678.74,677.39,0.25710421]
[1738220531770,1.1044254,678.78,677.38,0.29525524]
[1738220532772,0.27101077,678.77,677.38,0.29525524]
[1738220533368,0.27101077,678.77,677.39,0.25711323]
[1738220533572,0.27101077,678.77,677.38,0.29525524]
[1738220534473,1.1044254,678.78,677.38,0.29525524]
[1738220535075,1.1044254,678.74,677.38,0.29525524]
[1738220538774,1.1044254,679.06,677.38,0.29525524]
[1738220538971,0.56551261,679.05,677.38,0.29525524]
[1738220539174,0.27098349,679.04,677.38,0.29525524]
[1738220539975,0.56551694,679.04,677.38,0.29525524]
[1738220540172,0.27098493,679.03,677.38,0.29525524]
[1738220540571,0.29453345,679.04,677.38,0.29525524]
[1738220540874,0.27098871,679.03,677.38,0.29525524]
[1738220541773,1.1044254,679.0,677.38,0.29525524]
[1738220541976,0.27098871,678.99,677.38,0.29525524]
[1738220544173,0.27099545,678.98,677.38,0.29525524]
[1738220544380,0.27099545,678.99,677.39,0.25709524]
[1738220544679,0.27099545,678.98,677.41,0.29524217]
[1738220544880,0.27099545,678.99,677.41,0.29524217]
[1738220545071,0.27099545,678.98,677.41,0.29524217]
[1738220545273,1.1044254,678.93,677.41,0.29524217]
[1738220545472,0.27099545,678.92,677.41,0.29524217]
[1738220547685,1.1044254,678.65,677.41,0.29524217]
[1738220550786,1.1044254,678.68,677.41,0.29524217]
[1738220553186,1.1044254,678.75,677.41,0.29524217]
[1738220556191,1.1044254,678.72,677.41,0.29524217]
[1738220558888,1.1044254,678.77,677.41,0.29524217]
[1738220560490,0.2709941,678.76,677.41,0.29524217]
[1738220561286,1.1044254,678.77,677.41,0.29524217]
[1738220561891,1.1044254,678.74,677.41,0.29524217]
[1738220562091,0.2710238,678.73,677.41,0.29524217]
[1738220565892,0.2710296,678.72,677.41,0.29524217]
[1738220566086,0.2710296,678.71,677.41,0.29524217]
[1738220566287,0.2710296,678.73,677.41,0.29524217]
[1738220566591,0.2710296,678.72,677.41,0.29524217]
[1738220566792,0.2710296,678.71,677.41,0.29524217]
[1738220566992,0.2710296,678.7,677.41,0.29524217]
[1738220567294,0.2710296,678.69,677.41,0.29524217]
[1738220567590,0.2710296,678.68,677.41,0.29524217]
[1738220567787,0.2710296,678.73,677.41,0.29524217]
[1738220567992,0.2710296,678.72,677.41,0.29524217]
[1738220568187,0.2710296,678.73,677.41,0.29524217]
[1738220569189,0.27102463,678.72,677.41,0.29524217]
[1738220569389,0.27102463,678.71,677.41,0.29524217]
[1738220569589,0.27102463,678.7,677.41,0.29524217]
[1738220569793,0.27102463,678.73,677.41,0.29524217]
[1738220569997,0.27102463,678.72,677.41,0.29524217]
[1738220570189,0.27102463,678.73,677.41,0.29524217]
[1738220570391,0.27102463,678.72,677.41,0.29524217]
[1738220570588,0.27102463,678.71,677.41,0.29524217]
[1738220570794,1.1044254,678.74,677.41,0.29524217]
[1738220570995,0.27102805,678.73,677.41,0.29524217]
[1738220571899,1.1044254,678.57,677.41,0.29524217]
[1738220572098,0.27102805,678.56,677.41,0.29524217]
[1738220572699,0.27102905,678.55,677.41,0.29524217]
[1738220572999,0.27102905,678.54,677.41,0.29524217]
[1738220573201,0.27102905,678.56,677.41,0.29524217]
[1738220573499,0.27102905,678.55,677.41,0.29524217]
[1738220573693,1.1044254,678.57,677.41,0.29524217]
[1738220574094,0.29474614,678.55,677.16,1.09765334]
[1738220574500,0.2712262,678.54,677.16,1.09765334]
[1738220575001,1.1044254,678.42,677.34,1.09765334]
[1738220575201,0.2712262,678.41,677.34,1.09765334]
[1738220575602,0.29481132,678.4,677.34,1.09765334]
[1738220575803,0.2712262,678.39,677.34,1.09765334]
[1738220576003,0.27126259,678.38,677.34,1.09765334]
[1738220576197,0.27126259,678.39,677.34,1.09765334]
[1738220576604,0.29482001,678.38,677.34,1.09765334]
[1738220576802,0.27126259,678.37,677.34,1.09765334]
[1738220577007,0.2948287,678.36,677.34,1.09765334]
[1738220577200,0.27126259,678.35,677.34,1.09765334]
[1738220577603,0.2948287,678.36,677.34,1.09765334]
[1738220577900,0.27126987,678.35,677.34,1.09765334]
[1738220578300,0.29483739,678.34,677.34,1.09765334]
[1738220578500,0.29483739,678.34,676.21,1.09765334]
[1738220578501,0.27126987,678.33,676.21,1.09765334]
[1738220578704,0.29484609,678.32,676.31,0.29572237]
[1738220579001,0.27126987,678.31,676.32,0.25737235]
[1738220579207,0.27126987,678.31,676.34,0.29570925]
[1738220579407,0.27127197,678.3,676.35,0.25737445]
[1738220579708,0.27127197,678.29,676.37,0.29569614]
[1738220579902,0.27127197,678.31,676.38,0.25737445]
[1738220580107,0.27127197,678.3,676.4,0.29568302]
[1738220580407,0.27127197,678.29,676.41,0.25737445]
[1738220580611,0.27127197,678.28,676.43,0.29566991]
[1738220580901,0.27126871,678.27,676.44,0.25737119]
[1738220581100,0.27126871,678.31,676.44,0.25737119]
[1738220581300,0.27126871,678.3,676.44,0.25737119]
[1738220581504,0.27126871,678.29,676.44,0.25737119]
[1738220581709,0.27126871,678.28,676.44,0.25737119]
[1738220582003,0.27126871,678.27,676.44,0.25737119]
[1738220582309,0.27124316,678.26,676.46,0.2956568]
[1738220582505,0.27124316,678.31,676.47,0.25734585]
[1738220582807,0.2712392,678.3,676.49,0.29564369]
[1738220583001,0.2712392,678.31,676.5,0.25734585]
[1738220583204,0.2712392,678.3,676.52,0.29563058]
[1738220583401,0.2712392,678.31,676.52,0.29563058]
[1738220584107,0.27122922,678.3,676.53,0.257332]
[1738220584306,0.29484609,678.32,676.53,0.257332]
[1738220584509,0.2712166,678.31,676.55,0.29561747]
[1738220584707,0.2712166,678.31,676.56,0.257332]
[1738220584907,0.2712166,678.31,676.58,0.29560436]
[1738220586209,0.29484609,678.32,676.58,0.29560436]
[1738220586403,0.27122045,678.31,676.58,0.29560436]
[1738220592013,0.27122045,678.31,676.59,0.25732023]
[1738220592311,0.27121683,678.3,676.61,0.29559125]
[1738220592613,0.27121683,678.29,676.62,0.25731974]
[1738220592809,0.27121683,678.28,676.64,0.29557815]
[1738220593014,0.27121683,678.27,676.65,0.25731974]
[1738220593208,0.27121683,678.26,676.65,0.25731974]
[1738220593413,0.27121683,678.25,676.67,0.29556504]
[1738220593612,0.27121683,678.24,676.68,0.25731974]
[1738220593813,0.27121683,678.23,676.7,0.29555194]
[1738220594014,0.27121683,678.22,676.71,0.25731974]
[1738220594214,0.27121683,678.31,676.73,0.29553884]
[1738220594520,0.27121683,678.3,676.74,0.25731974]
[1738220594717,0.27121683,678.31,676.74,0.25731974]
[1738220594917,0.27121683,678.3,676.74,0.25731974]
[1738220595312,0.27121683,678.29,676.74,0.25731974]
[1738220595517,0.27122329,678.28,676.75,0.25732616]
[1738220595816,0.27122329,678.27,676.76,0.25732616]
[1738220596016,0.27122329,678.31,676.74,0.25732616]
[1738220596317,0.27122329,678.3,676.75,0.25732616]
[1738220596515,0.27122329,678.31,676.74,0.25732616]
[1738220596816,0.27122329,678.3,676.73,0.29553884]
[1738220597012,0.27122329,678.31,676.76,0.29552574]
[1738220598816,0.27121743,678.3,676.76,0.29552574]
[1738220599019,0.27121743,678.31,676.76,0.29552574]
[1738220599220,0.27121743,678.3,676.76,0.29552574]
[1738220599419,0.27121743,678.31,676.76,0.29552574]
[1738220599618,0.27121743,678.3,676.76,0.29552574]
[1738220599814,0.27121743,678.29,676.76,0.29552574]
[1738220600014,0.27121743,678.28,676.76,0.29552574]
[1738220600214,0.27121743,678.31,676.76,0.29552574]
[1738220600418,0.27121988,678.3,676.76,0.29552574]
[1738220600619,0.27121988,678.29,676.76,0.29552574]
[1738220600914,0.27121988,678.28,676.76,0.29552574]
[1738220601115,0.27121988,678.31,676.76,0.29552574]
[1738220601419,0.27121988,678.3,676.76,0.29552574]
[1738220601619,0.27121988,678.31,676.76,0.29552574]
[1738220601819,0.27121988,678.3,676.76,0.29552574]
[1738220602018,0.27121988,678.31,676.76,0.29552574]
[1738220602219,0.27121988,678.3,676.76,0.29552574]
[1738220602520,0.27121988,678.29,676.76,0.29552574]
[1738220602715,0.27121988,678.28,676.76,0.29552574]
[1738220602915,0.27121988,678.31,676.76,0.29552574]
[1738220603114,0.27121988,678.3,676.76,0.29552574]
[1738220603318,0.27121988,678.29,676.76,0.29552574]
[1738220603519,0.27121988,678.28,676.76,0.29552574]
[1738220603823,0.27121988,678.27,676.76,0.29552574]
[1738220604121,0.27121988,678.26,676.76,0.29552574]
[1738220604421,0.27121988,678.25,676.76,0.29552574]
[1738220604619,0.27121988,678.31,676.76,0.29552574]
[1738220604820,0.27121988,678.3,676.76,0.29552574]
[1738220605018,0.27121988,678.31,676.76,0.29552574]
[1738220605220,0.27121988,678.3,676.76,0.29552574]
[1738220605421,0.2712243,678.29,676.76,0.29552574]
[1738220605618,0.2712243,678.31,676.76,0.29552574]
[1738220605822,0.2712243,678.3,676.76,0.29552574]
[1738220606016,0.2712243,678.29,676.76,0.29552574]
[1738220606219,0.2712243,678.31,676.76,0.29552574]
[1738220606426,0.2712243,678.3,676.76,0.29552574]
[1738220606625,0.2712243,678.29,676.76,0.29552574]
[1738220606825,0.2712243,678.28,676.76,0.29552574]
[1738220607022,0.27122451,678.27,676.76,0.29552574]
[1738220607325,0.27122451,678.26,676.76,0.29552574]
[1738220607525,0.27122451,678.31,676.76,0.29552574]
[1738220608621,0.27122451,678.31,676.77,0.25732224]
[1738220608929,0.27122451,678.31,676.79,0.29551264]
[1738220609227,0.27122451,678.31,676.8,0.25732224]
[1738220609427,0.27122451,678.31,676.82,0.29549954]
[1738220609629,0.27122451,678.31,676.83,0.25730955]
[1738220609929,0.27122451,678.31,676.82,0.29549954]
[1738220611230,1.1044254,678.02,676.82,0.29549954]
[1738220611829,1.1044254,678.02,676.83,0.25729997]
[1738220612430,1.1044254,678.02,676.85,0.29548644]
[1738220612631,1.1044254,678.02,676.86,0.25729997]
[1738220613734,1.1044254,678.02,676.88,0.29547334]
[1738220614035,1.1044254,678.02,676.89,0.2572865]
[1738220614536,1.1044254,678.11,676.89,0.2572865]
[1738220615434,1.1044254,678.11,676.88,0.29547334]
[1738220617636,0.29484609,678.32,676.88,0.29547334]
[1738220617838,0.27117876,678.31,676.88,0.29547334]
[1738220620632,1.1044254,678.21,676.88,0.29547334]
[1738220623543,1.1044254,678.24,676.88,0.29547334]
[1738220624840,0.27118237,678.23,676.88,0.29547334]
[1738220625238,1.1044254,678.24,676.88,0.29547334]
[1738220627845,1.1044254,678.22,676.88,0.29547334]
[1738220631051,0.29484609,678.32,676.88,0.29547334]
[1738220631052,1.1044254,678.23,676.88,0.29547334]
[1738220634147,1.1044254,678.26,676.88,0.29547334]
[1738220635351,0.27118171,678.25,676.88,0.29547334]
[1738220636551,1.1044254,678.26,676.88,0.29547334]
[1738220636552,0.2711904,678.24,676.88,0.29547334]
[1738220636852,0.2711904,678.23,676.88,0.29547334]
[1738220637051,0.2711904,678.25,676.88,0.29547334]
[1738220637251,0.2711904,678.24,676.88,0.29547334]
[1738220637450,0.2711904,678.25,676.88,0.29547334]
[1738220637649,0.2711904,678.24,676.88,0.29547334]
[1738220637854,0.2711904,678.23,676.88,0.29547334]
[1738220638054,1.1044254,678.26,676.88,0.29547334]
[1738220638250,0.27118089,678.25,676.88,0.29547334]
[1738220638449,0.27118089,678.25,676.89,0.25727562]
[1738220638654,0.27118089,678.25,676.91,0.29546025]
[1738220639159,0.27118089,678.25,676.92,0.2572771]
[1738220639358,0.27118089,678.25,676.94,0.29544715]
[1738220639658,1.1044254,678.13,676.94,0.29544715]
[1738220641453,0.27118268,678.12,676.95,0.25728585]
[1738220641756,0.27118268,678.12,676.97,0.29543406]
[1738220642559,1.1044254,678.09,676.97,0.29543406]
[1738220645059,0.29484609,678.32,676.98,1.09765334]
[1738220645060,1.1044254,678.03,676.98,1.09765334]
[1738220645259,1.1044254,678.03,677.0,0.29542097]
[1738220647654,1.1044254,678.01,677.01,1.09765334]
[1738220650562,1.1044254,678.01,677.01,1.39306995]
[1738220651160,1.1044254,678.06,677.01,0.29541661]
[1738220653963,0.29484609,678.32,677.01,0.29541661]
[1738220653964,1.1044254,678.29,677.01,0.29541661]
[1738220656658,1.1044254,678.31,677.01,0.29541661]
[1738220659867,0.29484609,678.32,677.01,0.29541661]
[1738220659868,1.1044254,678.3,677.01,0.29541661]
[1738220661465,0.27121201,678.29,677.01,0.29541661]
[1738220663169,0.27125991,678.28,677.01,0.29541661]
[1738220663466,0.27125991,678.27,677.01,0.29541661]
[1738220663667,0.27125991,678.29,677.01,0.29541661]
[1738220663867,0.27125991,678.28,677.01,0.29541661]
[1738220664067,0.27125991,678.27,677.01,0.29541661]
[1738220664266,0.27125991,678.29,677.01,0.29541661]
[1738220664467,0.27125991,678.28,677.01,0.29541661]
[1738220664669,1.1044254,678.3,677.01,0.29541661]
[1738220664968,0.27126217,678.29,677.01,0.29541661]
[1738220666469,1.1044254,678.13,677.01,0.29541661]
[1738220666768,0.27126281,678.12,677.01,0.29541661]
[1738220668069,1.1044254,678.13,677.01,0.29541661]
[1738220668264,0.2712722,678.12,677.01,0.29541661]
[1738220668569,1.1044254,678.13,677.01,0.29541661]
[1738220668770,0.27129156,678.12,677.01,0.29541661]
[1738220671678,0.27129617,678.11,677.01,0.29541661]
[1738220671978,0.27129617,678.1,677.01,0.29541661]
[1738220672178,0.27129617,678.12,677.01,0.29541661]
[1738220672379,0.27129617,678.11,677.01,0.29541661]
[1738220672574,0.27129617,678.12,677.01,0.29541661]
[1738220672882,0.27129617,678.11,677.01,0.29541661]
[1738220673180,1.1044254,678.04,677.01,0.29541661]
[1738220673373,0.27129612,678.03,677.01,0.29541661]
[1738220676284,0.27129612,678.04,677.01,0.29541661]
[1738220676481,0.27129612,678.03,677.01,0.29541661]
[1738220676784,0.27129526,678.02,677.01,0.29541661]
[1738220676984,0.27129526,678.01,677.01,0.29541661]
[1738220677188,0.27129526,678.04,677.01,0.29541661]
[1738220677378,0.27129526,678.03,677.01,0.29541661]
[1738220677582,0.27129526,678.02,677.01,0.29541661]
[1738220677884,0.27129526,678.01,677.01,0.29541661]
[1738220678078,1.1044254,678.05,677.01,0.29541661]
[1738220682181,1.1044254,678.11,677.01,0.29541661]
[1738220684784,0.29484609,678.32,677.01,0.29541661]
[1738220684785,1.1044254,678.25,677.01,0.29541661]
[1738220685489,1.1044254,678.25,677.01,0.2887478]
[1738220686488,1.08958402,678.25,677.01,0.2887478]
[1738220686889,0.27135383,678.24,676.22,1.09765334]
[1738220687089,1.81248953,678.24,676.24,0.29575298]
[1738220687288,0.27135383,678.23,676.24,0.29575298]
[1738220688191,0.27135383,678.23,676.24,1.39340632]
[1738220688489,1.5411357,678.24,676.24,1.39340632]
[1738220688685,0.27144594,678.23,676.24,1.39340632]
[1738220689289,0.29489391,678.21,676.24,1.39340632]
[1738220689592,0.27144594,678.2,676.24,1.39340632]
[1738220689790,0.29490695,678.18,676.24,1.39340632]
[1738220690093,0.27144594,678.17,676.24,1.39340632]
[1738220690990,0.27144594,678.17,676.24,0.29575298]
[1738220691691,0.29492,678.15,676.24,0.29575298]
[1738220691892,0.27143677,678.14,676.24,0.29575298]
[1738220693394,0.2949287,678.13,676.24,0.29575298]
[1738220693593,0.27141539,678.12,676.24,0.29575298]
[1738220693894,0.27141539,678.11,676.24,0.29575298]
[1738220694094,0.56635713,678.1,676.24,0.29575298]
[1738220694294,0.29495044,678.08,676.24,0.29575298]
[1738220694490,0.27141539,678.07,676.24,0.29575298]
[1738220694694,0.29496349,678.05,676.24,0.29575298]
[1738220694894,0.27141539,678.04,676.24,0.29575298]
[1738220695395,0.29497654,678.02,676.24,0.29575298]
[1738220695791,0.27152288,678.01,676.24,0.29575298]
[1738220696498,0.2949896,677.99,676.24,0.29575298]
[1738220696796,0.27152288,677.98,676.24,0.29575298]
[1738220696993,0.29500265,677.96,676.24,0.29575298]
[1738220697296,0.27152288,677.95,676.24,0.29575298]
[1738220697496,0.2950157,677.93,676.24,0.29575298]
[1738220697696,0.27152288,677.92,676.24,0.29575298]
[1738220697898,0.29502876,677.9,676.24,0.29575298]
[1738220698098,0.27152288,677.89,676.24,0.29575298]
[1738220698291,0.29503746,677.88,676.24,0.29575298]
[1738220698495,0.27152288,677.87,676.24,0.29575298]
[1738220698695,0.29504617,677.86,676.24,0.29575298]
[1738220698900,0.27152127,677.85,676.24,0.29575298]
[1738220699200,0.29505488,677.84,676.24,0.29575298]
[1738220699592,0.27152199,677.83,676.24,0.29575298]
[1738220699792,0.29506358,677.82,676.24,0.29575298]